fUSD/lending_fUSD_20260614
["ID","MTS","AMOUNT","RATE_DAILY","PERIOD"]
[425011298,1781413850000,-500.0,0.00027671,8]
[425011297,1781413850000,-500.0,0.00027671,8]
[425011299,1781413850000,-1242.61,0.00027671,8]
[425011300,1781413850000,-604.1,0.00027671,8]
[425011302,1781413850000,-501.45,0.00027671,8]
[425011303,1781413850000,-337.32325569,0.00027671,8]
[425011301,1781413850000,-648.84,0.00027671,8]
[425011305,1781413850000,-963.02,0.00027671,8]
[425011304,1781413850000,-500.0,0.00027671,8]
[425011308,1781413850000,-1420.3897267,0.00027671,8]
[425011307,1781413850000,-589.39,0.00027671,8]
[425011306,1781413850000,-1192.0,0.00027671,8]
[425011309,1781413850000,-232.7002733,0.00027671,8]
[425011310,1781413850000,-745.59,0.00027671,8]
[425011311,1781413850000,-500.0,0.00027671,8]
[425011312,1781413850000,-449.02409658,0.00027671,8]
[425011286,1781413850000,-500.0,0.00027671,8]
[425011287,1781413850000,-500.0,0.00027671,8]
[425011290,1781413850000,-500.0,0.00027671,8]
[425011285,1781413850000,-1007.92,0.00027671,8]
[425011257,1781413850000,-523.48776991,0.00027671,8]
[425011258,1781413850000,-1477.01,0.00027671,8]
[425011260,1781413850000,-500.0,0.00027671,8]
[425011259,1781413850000,-608.87,0.00027671,8]
[425011261,1781413850000,-500.0,0.00027671,8]
[425011262,1781413850000,-500.0,0.00027671,8]
[425011264,1781413850000,-547.62,0.00027671,8]
[425011263,1781413850000,-3102.37,0.00027671,8]
[425011284,1781413850000,-500.0,0.00027671,8]
[425011267,1781413850000,-883.55,0.00027671,8]
[425011266,1781413850000,-500.0,0.00027671,8]
[425011269,1781413850000,-510.37,0.00027671,8]
[425011270,1781413850000,-500.0,0.00027671,8]
[425011265,1781413850000,-889.97,0.00027671,8]
[425011275,1781413850000,-809.36,0.00027671,8]
[425011271,1781413850000,-1270.21,0.00027671,8]
[425011282,1781413850000,-3220.54,0.00027671,8]
[425011281,1781413850000,-500.0,0.00027671,8]
[425011280,1781413850000,-234.61977172,0.00027671,8]
[425011279,1781413850000,-500.0,0.00027671,8]
[425011283,1781413850000,-500.0,0.00027671,8]
[425011277,1781413850000,-500.0,0.00027671,8]
[425011274,1781413850000,-500.0,0.00027671,8]
[425011276,1781413850000,-775.96,0.00027671,8]
[425011273,1781413850000,-2375.22,0.00027671,8]
[425011272,1781413850000,-500.0,0.00027671,8]
[425011278,1781413850000,-2352.69,0.00027671,8]
[425011314,1781413851000,-50.97590342,0.00027671,8]
[425011313,1781413851000,-177.40807247,0.00027397,2]
[425011317,1781413851000,-368.34040415,0.00027671,8]
[425011316,1781413851000,-500.0,0.00027671,8]
[425011315,1781413851000,-1755.46,0.00027671,8]
[425011319,1781413851000,-500.0,0.00027671,8]
[425011318,1781413851000,-1848.1,0.00027671,8]
[425011321,1781413851000,-1960.39,0.00027671,8]
[425011320,1781413851000,-500.0,0.00027671,8]
[425011323,1781413851000,-5793.66078004,0.00027671,8]
[425011327,1781413851000,-500.0,0.00027671,8]
[425011325,1781413851000,-539.01361197,0.00027671,8]
[425011322,1781413851000,-2838.51921996,0.00027671,8]
[425011333,1781413851000,-91.79833769,0.00027671,8]
[425011332,1781413851000,-408.20166231,0.00027671,8]
[425011330,1781413851000,-500.0,0.00027671,2]
[425011334,1781413851000,-318.15505036,0.00027671,8]
[425011328,1781413851000,-500.0,0.00027671,8]
[425011329,1781413851000,-970.25,0.00027671,8]
[425011326,1781413851000,-500.0,0.00027671,8]
[425011324,1781413851000,-448.08185347,0.00027671,8]
[425011331,1781413851000,-2347.19,0.00027671,8]
[425011344,1781413852000,-548.55,0.00027671,8]
[425011350,1781413852000,-2040.85,0.00027671,8]
[425011352,1781413852000,-274.393874,0.00027671,8]
[425011348,1781413852000,-6868.92,0.00027671,8]
[425011349,1781413852000,-500.0,0.00027671,8]
[425011347,1781413852000,-954.76,0.00027671,8]
[425011346,1781413852000,-500.0,0.00027671,8]
[425011345,1781413852000,-908.38,0.00027671,8]
[425011335,1781413852000,-1007.08494964,0.00027671,8]
[425011343,1781413852000,-500.0,0.00027671,8]
[425011341,1781413852000,-642.76,0.00027671,8]
[425011342,1781413852000,-500.0,0.00027671,8]
[425011340,1781413852000,-806.44,0.00027671,8]
[425011351,1781413852000,-500.0,0.00027671,8]
[425011338,1781413852000,-500.0,0.00027671,8]
[425011337,1781413852000,-2716.9,0.00027671,8]
[425011336,1781413852000,-500.0,0.00027671,8]
[425011339,1781413852000,-1963.38,0.00027671,8]
[425011354,1781413852000,-2791.61,0.00027671,8]
[425011371,1781413852000,-500.0,0.00027671,8]
[425011356,1781413852000,-1253.4,0.00027671,8]
[425011355,1781413852000,-1521.7,0.00027671,8]
[425011372,1781413852000,-843.81,0.00027671,8]
[425011369,1781413852000,-814.65,0.00027671,8]
[425011370,1781413852000,-1034.44,0.00027671,8]
[425011368,1781413852000,-1475.92,0.00027671,8]
[425011367,1781413852000,-500.0,0.00027671,8]
[425011365,1781413852000,-500.0,0.00027671,8]
[425011366,1781413852000,-1226.97,0.00027671,8]
[425011373,1781413852000,-500.0,0.00027671,8]
[425011363,1781413852000,-351.93671142,0.00027671,8]
[425011361,1781413852000,-500.0,0.00027671,8]
[425011362,1781413852000,-500.0,0.00027671,8]
[425011360,1781413852000,-500.0,0.00027671,8]
[425011359,1781413852000,-500.0,0.00027671,8]
[425011358,1781413852000,-500.0,0.00027671,8]
[425011357,1781413852000,-500.0,0.00027671,8]
[425011353,1781413852000,-500.0,0.00027671,8]
[425011364,1781413852000,-500.0,0.00027671,8]
[425011402,1781413853000,-1336.68,0.00027671,8]
[425011403,1781413853000,-500.0,0.00027671,8]
[425011395,1781413853000,-500.0,0.00027671,8]
[425011398,1781413853000,-500.0,0.00027671,8]
[425011396,1781413853000,-549.5,0.00027671,8]
[425011401,1781413853000,-562.41,0.00027671,8]
[425011397,1781413853000,-523.91,0.00027671,8]
[425011399,1781413853000,-500.0,0.00027671,8]
[425011407,1781413853000,-1682.51,0.00027671,8]
[425011404,1781413853000,-500.0,0.00027671,8]
[425011406,1781413853000,-1178.17,0.00027671,8]
[425011408,1781413853000,-1469.64,0.00027671,8]
[425011410,1781413853000,-500.0,0.00027671,8]
[425011409,1781413853000,-1894.75,0.00027671,8]
[425011412,1781413853000,-1248.75,0.00027671,8]
[425011411,1781413853000,-500.0,0.00027671,8]
[425011394,1781413853000,-801.47,0.00027671,8]
[425011405,1781413853000,-500.0,0.00027671,8]
[425011392,1781413853000,-500.0,0.00027671,8]
[425011384,1781413853000,-500.0,0.00027671,8]
[425011391,1781413853000,-510.76,0.00027671,8]
[425011374,1781413853000,-1745.08,0.00027671,8]
[425011375,1781413853000,-500.0,0.00027671,8]
[425011376,1781413853000,-716.44,0.00027671,8]
[425011378,1781413853000,-500.0,0.00027671,8]
[425011377,1781413853000,-500.0,0.00027671,8]
[425011379,1781413853000,-500.0,0.00027671,8]
[425011381,1781413853000,-1595.47,0.00027671,8]
[425011380,1781413853000,-2892.7,0.00027671,8]
[425011382,1781413853000,-508.83,0.00027671,8]
[425011385,1781413853000,-500.0,0.00027671,8]
[425011414,1781413853000,-599.6,0.00027671,8]
[425011383,1781413853000,-623.8498389,0.00027671,8]
[425011387,1781413853000,-2198.4,0.00027671,8]
[425011386,1781413853000,-8613.63,0.00027671,8]
[425011388,1781413853000,-500.0,0.00027671,8]
[425011390,1781413853000,-886.74,0.00027671,8]
[425011389,1781413853000,-500.0,0.00027671,8]
[425011393,1781413853000,-500.0,0.00027671,8]
[425011413,1781413853000,-500.0,0.00027671,8]
[425011400,1781413853000,-500.0,0.00027671,8]
[425011417,1781413853000,-257.5499017,0.00027671,8]
[425011439,1781413853000,-500.0,0.00027671,8]
[425011437,1781413853000,-500.0,0.00027671,8]
[425011440,1781413853000,-500.0,0.00027671,8]
[425011441,1781413853000,-909.03,0.00027671,8]
[425011442,1781413853000,-1873.07,0.00027671,8]
[425011443,1781413853000,-784.59,0.00027671,8]
[425011445,1781413853000,-705.42,0.00027671,8]
[425011444,1781413853000,-505.32,0.00027671,8]
[425011438,1781413853000,-1045.91,0.00027671,8]
[425011446,1781413853000,-500.0,0.00027671,8]
[425011447,1781413853000,-3284.49,0.00027671,8]
[425011449,1781413853000,-1539.7,0.00027671,8]
[425011451,1781413853000,-618.47,0.00027671,8]
[425011454,1781413853000,-1072.21,0.00027671,8]
[425011452,1781413853000,-988.49,0.00027671,8]
[425011450,1781413853000,-2440.94,0.00027671,8]
[425011453,1781413853000,-502.46,0.00027671,8]
[425011415,1781413853000,-645.68,0.00027671,8]
[425011448,1781413853000,-754.48,0.00027671,8]
[425011436,1781413853000,-500.0,0.00027671,8]
[425011455,1781413853000,-500.0,0.00027671,8]
[425011434,1781413853000,-347.99927,0.00027671,8]
[425011435,1781413853000,-1887.39,0.00027671,8]
[425011418,1781413853000,-500.0,0.00027671,8]
[425011419,1781413853000,-500.0,0.00027671,8]
[425011420,1781413853000,-500.0,0.00027671,8]
[425011422,1781413853000,-500.0,0.00027671,8]
[425011421,1781413853000,-500.0,0.00027671,8]
[425011423,1781413853000,-500.0,0.00027671,8]
[425011425,1781413853000,-500.0,0.00027671,8]
[425011424,1781413853000,-500.0,0.00027671,8]
[425011416,1781413853000,-767.47,0.00027671,8]
[425011427,1781413853000,-500.0,0.00027671,8]
[425011426,1781413853000,-500.0,0.00027671,8]
[425011429,1781413853000,-500.0,0.00027671,8]
[425011428,1781413853000,-1809.73,0.00027671,8]
[425011430,1781413853000,-500.0,0.00027671,8]
[425011431,1781413853000,-500.0,0.00027671,8]
[425011432,1781413853000,-500.0,0.00027671,8]
[425011433,1781413853000,-1112.89,0.00027671,8]
[425011480,1781413854000,-500.0,0.00027671,8]
[425011479,1781413854000,-572.35593708,0.00027671,8]
[425011477,1781413854000,-500.0,0.00027671,8]
[425011481,1781413854000,-235.98188412,0.00027671,8]
[425011484,1781413854000,-500.0,0.00027671,8]
[425011482,1781413854000,-500.0,0.00027671,8]
[425011485,1781413854000,-500.0,0.00027671,8]
[425011487,1781413854000,-500.0,0.00027671,8]
[425011490,1781413854000,-586.63467762,0.00027671,8]
[425011486,1781413854000,-500.0,0.00027671,8]
[425011496,1781413854000,-1937.98,0.00027671,8]
[425011489,1781413854000,-567.18,0.00027671,8]
[425011491,1781413854000,-694.06,0.00027671,8]
[425011492,1781413854000,-303.67135086,0.00027671,8]
[425011493,1781413854000,-500.0,0.00027671,8]
[425011494,1781413854000,-628.32814026,0.00027671,8]
[425011478,1781413854000,-500.0,0.00027671,2]
[425011488,1781413854000,-1714.07,0.00027671,8]
[425011475,1781413854000,-769.05,0.00027671,8]
[425011467,1781413854000,-500.0,0.00027671,8]
[425011474,1781413854000,-1628.84,0.00027671,8]
[425011498,1781413854000,-500.0,0.00027671,8]
[425011456,1781413854000,-621.55490196,0.00027671,8]
[425011457,1781413854000,-713.95,0.00027671,8]
[425011460,1781413854000,-887.59,0.00027671,8]
[425011458,1781413854000,-500.0,0.00027671,8]
[425011459,1781413854000,-500.0,0.00027671,8]
[425011462,1781413854000,-500.0,0.00027671,8]
[425011461,1781413854000,-1049.64,0.00027671,8]
[425011476,1781413854000,-500.0,0.00027671,8]
[425011463,1781413854000,-1646.14,0.00027671,8]
[425011466,1781413854000,-487.34134905,0.00027671,8]
[425011465,1781413854000,-500.0,0.00027671,8]
[425011468,1781413854000,-753.68,0.00027671,8]
[425011470,1781413854000,-3350.75,0.00027671,8]
[425011469,1781413854000,-500.0,0.00027671,8]
[425011471,1781413854000,-500.0,0.00027671,8]
[425011472,1781413854000,-500.0,0.00027671,8]
[425011473,1781413854000,-500.0,0.00027671,8]
[425011464,1781413854000,-500.0,0.00027671,8]
[425011497,1781413854000,-1471.77,0.00027671,8]
[425011483,1781413854000,-500.0,0.00027671,8]
[425011499,1781413854000,-500.0,0.00027671,8]
[425011521,1781413854000,-500.0,0.00027671,8]
[425011522,1781413854000,-500.0,0.00027671,8]
[425011524,1781413854000,-658.83,0.00027671,8]
[425011526,1781413854000,-500.0,0.00027671,8]
[425011525,1781413854000,-500.0,0.00027671,8]
[425011529,1781413854000,-500.0,0.00027671,8]
[425011527,1781413854000,-500.0,0.00027671,8]
[425011528,1781413854000,-1518.26,0.00027671,8]
[425011520,1781413854000,-2529.39,0.00027671,8]
[425011530,1781413854000,-500.0,0.00027671,8]
[425011532,1781413854000,-2097.15,0.00027671,8]
[425011531,1781413854000,-500.0,0.00027671,8]
[425011534,1781413854000,-500.0,0.00027671,8]
[425011535,1781413854000,-560.26,0.00027671,8]
[425011536,1781413854000,-1537.37,0.00027671,8]
[425011537,1781413854000,-500.0,0.00027671,8]
[425011538,1781413854000,-500.0,0.00027671,8]
[425011495,1781413854000,-500.0,0.00027671,8]
[425011533,1781413854000,-500.0,0.00027671,8]
[425011523,1781413854000,-1806.53,0.00027671,8]
[425011540,1781413854000,-574.53,0.00027671,8]
[425011519,1781413854000,-500.0,0.00027671,8]
[425011502,1781413854000,-190.39846339,0.00027671,8]
[425011500,1781413854000,-500.0,0.00027671,8]
[425011501,1781413854000,-513.29,0.00027671,8]
[425011503,1781413854000,-554.92,0.00027671,8]
[425011505,1781413854000,-1045.1,0.00027671,8]
[425011517,1781413854000,-500.0,0.00027671,8]
[425011506,1781413854000,-509.47,0.00027671,8]
[425011509,1781413854000,-1715.79,0.00027671,8]
[425011508,1781413854000,-577.02400593,0.00027671,8]
[425011504,1781413854000,-500.0,0.00027671,8]
[425011507,1781413854000,-815.3,0.00027671,8]
[425011511,1781413854000,-500.0,0.00027671,8]
[425011513,1781413854000,-500.0,0.00027671,8]
[425011515,1781413854000,-500.0,0.00027671,8]
[425011539,1781413854000,-3435.37,0.00027671,8]
[425011512,1781413854000,-314.87740431,0.00027671,8]
[425011514,1781413854000,-388.65098881,0.00027671,8]
[425011516,1781413854000,-749.52,0.00027671,8]
[425011510,1781413854000,-500.0,0.00027671,8]
[425011518,1781413854000,-500.0,0.00027671,8]
[425011570,1781413855000,-520.94,0.00027671,8]
[425011567,1781413855000,-500.0,0.00027671,8]
[425011565,1781413855000,-500.0,0.00027671,8]
[425011562,1781413855000,-1065.92,0.00027671,8]
[425011566,1781413855000,-500.0,0.00027671,8]
[425011564,1781413855000,-500.0,0.00027671,8]
[425011568,1781413855000,-1671.31,0.00027671,8]
[425011572,1781413855000,-500.0,0.00027671,2]
[425011578,1781413855000,-500.0,0.00027671,8]
[425011571,1781413855000,-500.0,0.00027671,8]
[425011574,1781413855000,-500.0,0.00027671,8]
[425011573,1781413855000,-735.99,0.00027671,8]
[425011575,1781413855000,-2417.92,0.00027671,8]
[425011576,1781413855000,-737.24,0.00027671,8]
[425011577,1781413855000,-500.0,0.00027671,8]
[425011579,1781413855000,-500.0,0.00027671,8]
[425011563,1781413855000,-500.0,0.00027671,8]
[425011569,1781413855000,-500.0,0.00027671,8]
[425011561,1781413855000,-581.87925369,0.00027671,8]
[425011551,1781413855000,-500.0,0.00027671,8]
[425011558,1781413855000,-500.0,0.00027671,8]
[425011582,1781413855000,-500.0,0.00027671,8]
[425011543,1781413855000,-500.0,0.00027671,8]
[425011541,1781413855000,-500.0,0.00027671,8]
[425011542,1781413855000,-1203.27,0.00027671,8]
[425011544,1781413855000,-500.0,0.00027671,8]
[425011545,1781413855000,-796.79,0.00027671,8]
[425011547,1781413855000,-1568.53,0.00027671,8]
[425011546,1781413855000,-500.0,0.00027671,8]
[425011560,1781413855000,-500.0,0.00027671,8]
[425011548,1781413855000,-922.3,0.00027671,8]
[425011549,1781413855000,-500.0,0.00027671,8]
[425011553,1781413855000,-325.60881368,0.00027671,8]
[425011552,1781413855000,-500.0,0.00027671,8]
[425011554,1781413855000,-500.0,0.00027671,8]
[425011555,1781413855000,-500.0,0.00027671,8]
[425011556,1781413855000,-500.0,0.00027671,8]
[425011557,1781413855000,-500.0,0.00027671,8]
[425011559,1781413855000,-552.92,0.00027671,8]
[425011550,1781413855000,-500.0,0.00027671,8]
[425011581,1781413855000,-500.0,0.00027671,8]
[425011580,1781413855000,-500.0,0.00027671,8]
[425011585,1781413855000,-500.0,0.00027671,8]
[425011605,1781413855000,-500.0,0.00027671,120]
[425011604,1781413855000,-500.0,0.00027671,8]
[425011610,1781413855000,-314.87740431,0.00027671,8]
[425011609,1781413855000,-314.87740431,0.00027671,8]
[425011611,1781413855000,-314.87740431,0.00027671,8]
[425011612,1781413855000,-314.87740431,0.00027671,8]
[425011616,1781413855000,-314.87740431,0.00027671,8]
[425011615,1781413855000,-314.87740431,0.00027671,8]
[425011602,1781413855000,-500.0,0.00027671,8]
[425011613,1781413855000,-314.87740431,0.00027671,8]
[425011618,1781413855000,-314.87740431,0.00027671,8]
[425011614,1781413855000,-314.87740431,0.00027671,8]
[425011620,1781413855000,-314.87740431,0.00027671,8]
[425011622,1781413855000,-314.87740431,0.00027671,8]
[425011619,1781413855000,-314.87740431,0.00027671,8]
[425011621,1781413855000,-314.87740431,0.00027671,8]
[425011623,1781413855000,-314.87740431,0.00027671,8]
[425011624,1781413855000,-13.64695013,0.00027671,8]
[425011617,1781413855000,-314.87740431,0.00027671,8]
[425011586,1781413855000,-212.32203995,0.00027671,8]
[425011603,1781413855000,-500.0,0.00027671,8]
[425011607,1781413855000,-106708.9278209,0.00027671,2]
[425011584,1781413855000,-320.29428243,0.00027671,8]
[425011583,1781413855000,-500.0,0.00027671,8]
[425011587,1781413855000,-500.0,0.00027671,8]
[425011588,1781413855000,-500.0,0.00027671,8]
[425011591,1781413855000,-500.0,0.00027671,8]
[425011589,1781413855000,-500.0,0.00027671,8]
[425011590,1781413855000,-500.0,0.00027671,8]
[425011593,1781413855000,-500.0,0.00027671,8]
[425011606,1781413855000,-792.24003188,0.00027671,8]
[425011594,1781413855000,-500.0,0.00027671,8]
[425011596,1781413855000,-500.0,0.00027671,8]
[425011597,1781413855000,-500.0,0.00027671,8]
[425011592,1781413855000,-500.0,0.00027671,8]
[425011599,1781413855000,-500.0,0.00027671,8]
[425011598,1781413855000,-219.6595963,0.00027671,8]
[425011600,1781413855000,-500.0,0.00027671,8]
[425011601,1781413855000,-500.0,0.00027671,8]
[425011608,1781413855000,-553.70123704,0.00027671,8]
[425011595,1781413855000,-500.0,0.00027671,8]
[425011626,1781413881000,367.74,0.00013911,2]
[425011625,1781413881000,367.74,0.00013114,2]
[425011628,1781413881000,367.74,0.00014494,2]
[425011627,1781413881000,367.74,0.00014241,2]
[425011641,1781414827000,-458.66592852,0.00019341,2]
[425011640,1781414827000,-181.68604054,0.000192,2]
[425011639,1781414827000,-271.06484369,0.0001764,2]
[425011638,1781414827000,-151.0,0.0001764,2]
[425011637,1781414827000,-151.0,0.0001764,2]
[425011642,1781414832000,-345.78100878,0.00019341,2]
[425011643,1781414835000,-519.37336094,0.00019341,2]
[425011644,1781414970000,250.0,0.00014,2]
[425011668,1781415032000,-413.0,0.00020029,2]
[425011672,1781415032000,-1125.99999999,0.0002065,2]
[425011669,1781415032000,-413.0,0.0002008,2]
[425011670,1781415032000,-403.0,0.00020224,2]
[425011678,1781415032000,-170.0,0.00021,2]
[425011664,1781415032000,-411.0,0.0002,2]
[425011673,1781415032000,-239.812045,0.00020882,2]
[425011674,1781415032000,-194.63522793,0.00020982,2]
[425011671,1781415032000,-1613.0535,0.00020334,2]
[425011679,1781415032000,-218.0,0.00021,2]
[425011667,1781415032000,-407.0,0.00020011,2]
[425011677,1781415032000,-151.0,0.00021,2]
[425011675,1781415032000,-304.515193,0.00020982,2]
[425011681,1781415032000,-5054.0,0.00021,5]
[425011653,1781415032000,-1555.5,0.00019786,2]
[425011676,1781415032000,-186.007322,0.00021,2]
[425011694,1781415032000,-154.27646457,0.00021978,2]
[425011657,1781415032000,-151.0,0.0002,2]
[425011666,1781415032000,-400.0,0.00020004,2]
[425011652,1781415032000,-239.90161693,0.00019785,2]
[425011647,1781415032000,-300.0,0.00016,2]
[425011648,1781415032000,-1500.0,0.00019238,2]
[425011649,1781415032000,-160.0,0.00019342,2]
[425011651,1781415032000,-19.44792748,0.00019785,2]
[425011656,1781415032000,-154.0,0.0002,2]
[425011655,1781415032000,-155.0,0.0002,2]
[425011650,1781415032000,-350.0,0.00019545,2]
[425011654,1781415032000,-186.007322,0.0002,2]
[425011658,1781415032000,-153.0,0.0002,2]
[425011659,1781415032000,-158.0,0.0002,2]
[425011660,1781415032000,-153.0,0.0002,2]
[425011661,1781415032000,-154.0,0.0002,2]
[425011663,1781415032000,-218.0,0.0002,2]
[425011665,1781415032000,-403.0,0.00020001,2]
[425011662,1781415032000,-156.0,0.0002,2]
[425011682,1781415032000,-1158.14018751,0.00021275,2]
[425011700,1781415032000,-218.0,0.00022,2]
[425011698,1781415032000,-186.007322,0.00022,2]
[425011717,1781415032000,-151.0,0.0002417,2]
[425011722,1781415032000,-500.0,0.0002417,2]
[425011716,1781415032000,-151.0,0.0002417,2]
[425011718,1781415032000,-151.0,0.0002417,2]
[425011721,1781415032000,-151.0,0.0002417,2]
[425011720,1781415032000,-151.0,0.0002417,2]
[425011723,1781415032000,-151.0,0.0002417,2]
[425011724,1781415032000,-151.0,0.0002417,2]
[425011726,1781415032000,-151.0,0.0002417,2]
[425011728,1781415032000,-500.0,0.0002417,2]
[425011730,1781415032000,-151.0,0.0002417,2]
[425011727,1781415032000,-151.0,0.0002417,2]
[425011725,1781415032000,-500.0,0.0002417,2]
[425011729,1781415032000,-151.0,0.0002417,2]
[425011696,1781415032000,-153.60555237,0.00021978,2]
[425011719,1781415032000,-151.0,0.0002417,2]
[425011714,1781415032000,-200.0,0.0002417,2]
[425011712,1781415032000,-218.0,0.00024,2]
[425011713,1781415032000,-65024.2385,0.0002407,2]
[425011699,1781415032000,-153.0,0.00022,2]
[425011715,1781415032000,-151.0,0.0002417,2]
[425011688,1781415032000,-350.0,0.00021368,3]
[425011692,1781415032000,-150.0,0.00021918,2]
[425011686,1781415032000,-62.93033133,0.00021275,2]
[425011702,1781415032000,-166.66,0.00022856,30]
[425011701,1781415032000,-151.0,0.00022353,2]
[425011704,1781415032000,-218.0,0.00023,2]
[425011690,1781415032000,-250.74390866,0.00021888,2]
[425011705,1781415032000,-350.0,0.00023075,4]
[425011706,1781415032000,-166.66,0.00023337,30]
[425011708,1781415032000,-155.22,0.0002356,2]
[425011711,1781415032000,-186.007322,0.00024,2]
[425011709,1781415032000,-166.66,0.00023818,30]
[425011707,1781415032000,-151.0,0.00023354,2]
[425011710,1781415032000,-174.57,0.00023961,2]
[425011703,1781415032000,-186.007322,0.00023,2]
[425011765,1781415033000,-350.26,0.00027397,10]
[425011767,1781415033000,-500.0,0.000275,7]
[425011766,1781415033000,-2836.65810971,0.00027475,2]
[425011769,1781415033000,-153.47,0.0002755,30]
[425011764,1781415033000,-2836.65810971,0.00027382,2]
[425011770,1781415033000,-172.68,0.0002755,30]
[425011762,1781415033000,-200.0,0.00027313,2]
[425011761,1781415033000,-500.0,0.00027272,7]
[425011760,1781415033000,-2836.65810971,0.00027244,2]
[425011768,1781415033000,-153.48,0.0002755,30]
[425011763,1781415033000,-3557.0,0.00027379,2]
[425011771,1781415033000,-2500.0,0.00027571,2]
[425011779,1781415033000,-500.0,0.00027668,7]
[425011774,1781415033000,-778.0,0.000276,2]
[425011775,1781415033000,-200.0,0.000276,10]
[425011772,1781415033000,-350.0,0.00027578,9]
[425011776,1781415033000,-701.0,0.000276,2]
[425011777,1781415033000,-785.01761348,0.00027607,2]
[425011778,1781415033000,-2836.65810971,0.00027614,2]
[425011780,1781415033000,-1226.15,0.00027668,8]
[425011759,1781415033000,-2777.42603305,0.00027162,2]
[425011781,1781415033000,-500.0,0.00027668,8]
[425011782,1781415033000,-500.0,0.00027668,8]
[425011784,1781415033000,-500.0,0.0002767,8]
[425011788,1781415033000,-314.87740431,0.00027671,8]
[425011773,1781415033000,-1045.38594661,0.00027592,2]
[425011754,1781415033000,-350.0,0.00026174,7]
[425011749,1781415033000,-5000.0,0.00024976,2]
[425011755,1781415033000,-151.0,0.00026296,2]
[425011731,1781415033000,-500.0,0.0002417,2]
[425011733,1781415033000,-151.0,0.0002417,2]
[425011734,1781415033000,-500.0,0.0002417,2]
[425011735,1781415033000,-151.0,0.0002417,2]
[425011732,1781415033000,-151.0,0.0002417,2]
[425011737,1781415033000,-199.11842817,0.0002417,2]
[425011736,1781415033000,-151.0,0.0002417,2]
[425011747,1781415033000,-166.66,0.00024781,30]
[425011739,1781415033000,-151.0,0.0002417,2]
[425011745,1781415033000,-350.0,0.00024675,5]
[425011744,1781415033000,-183.6,0.00024346,2]
[425011741,1781415033000,-181.43211455,0.0002417,2]
[425011742,1781415033000,-166.66,0.00024299,30]
[425011746,1781415033000,-177.93,0.0002473,2]
[425011740,1781415033000,-151.0,0.0002417,2]
[425011738,1781415033000,-151.0,0.0002417,2]
[425011743,1781415033000,-151.0,0.00024324,2]
[425011748,1781415033000,-347.17,0.00024882,2]
[425011783,1781415033000,-4262.73,0.0002767,8]
[425011752,1781415033000,-286.4699306,0.00025555,3]
[425011751,1781415033000,-166.66,0.00025262,30]
[425011750,1781415033000,-223.0,0.00025,2]
[425011758,1781415033000,-201.6,0.00027123,2]
[425011756,1781415033000,-1218.6465948,0.00027058,2]
[425011753,1781415033000,-216.06106235,0.00025594,2]
[425011757,1781415033000,-875.084,0.00027079,15]